Cogmind - Beta 12 @@@ ROGUE MODE // 2023.03.04 @ 23:46:44 Player: maxwell Result: Self-destructed Performance ------------- Evolutions (2) 1000 Regions Visited (5) 1000 Robots Destroyed (62) 310 Value Destroyed (2237) 2237 Prototype IDs (23) 460 Alien Tech Used (0) 0 Bonus (374) 374 TOTAL SCORE: 5381 Bonus ------- High Alert Combat Kills 74 Aligned with FarCom 300 Cogmind --------- Core Integrity 312/550 Matter 285/300 Energy 92/150 System Corruption 0% Temperature Hot (250) Movement Core (1100) Ox21 Location -8/Materials Parts ------- > --- POWER (1) -------- Light Angular Momentum Engine > --- PROPULSION (2) --- (None) > --- UTILITY (5) ------ Advanced Heat Sink High-capacity Storage Unit Structural Scanner Advanced Targeting Computer Reflective Plating > --- WEAPON (3) ------- Field Laser Heavy Laser Great Maul > --- INVENTORY (20) --- Huge Storage Unit Huge Storage Unit Large Matter Pod (150) Machine Analyzer Machine Analyzer Improved Terrain Scanner Modified TNC Reflective Plating Reflective Plating Reflective Plating Insulated Plating AWS/Thermal AWS/Autocannon Grenade Launcher Rocket Launcher Peak State ------------ > --- POWER ------------ Light Angular Momentum Engine > --- PROPULSION ------- Wheel > --- UTILITY ---------- High-capacity Storage Unit Structural Scanner Advanced Targeting Computer Light Armor Plating Hardened Medium Armor Plating > --- WEAPON ----------- Heavy Laser AWS/Thermal > --- INVENTORY -------- Advanced Heat Sink Huge Storage Unit Huge Storage Unit Large Matter Pod Machine Analyzer Machine Analyzer Improved Terrain Scanner Modified TNC Light Armor Plating Reflective Plating Insulated Plating Field Laser AWS/Autocannon Grenade Launcher Rocket Launcher Great Maul [Rating: 41] Favorites ----------- Power Ion Engine Engine Ion Engine Propulsion Light Treads Treads Light Treads Wheel Wheel Utility High-capacity Storage Unit Device Structural Scanner Storage High-capacity Storage Unit Processor Advanced Targeting Computer Protection Hardened Medium Armor Plating Weapon Medium Laser Energy Gun Medium Laser Launcher Grenade Launcher Impact Weapon Great Maul Build | -11 -10 -10 -10 -9 -8 ------- Run | Jun Mat Min Exi Min Mat Slots Evolved 4 | . . . . . 4 Power . | . . . . . . Propulsion . | . . . . . . Utility 3 | . . . . . 3 Weapon 1 | . . . . . 1 Parts Attached 39 | 6 9 3 3 1 17 Power 4 | 1 1 . . . 2 Engine 4 | 1 1 . . . 2 Core . | . . . . . . Reactor . | . . . . . . Propulsion 4 | 2 . . . 1 1 Treads 2 | 2 . . . . . Leg . | . . . . . . Wheel 2 | . . . . 1 1 Hover . | . . . . . . Flight . | . . . . . . Utility 15 | 1 4 1 . . 9 Device 3 | . . . . . 3 Storage 5 | 1 3 1 . . . Processor 1 | . . . . . 1 Hackware . | . . . . . . Protection 6 | . 1 . . . 5 Artifact . | . . . . . . Weapon 16 | 2 4 2 3 . 5 Energy Gun 11 | 2 3 1 3 . 2 Energy Cannon . | . . . . . . Ballistic Gun . | . . . . . . Ballistic Cannon . | . . . . . . Launcher 4 | . 1 1 . . 2 Special Weapon . | . . . . . . Impact Weapon 1 | . . . . . 1 Slashing Weapon . | . . . . . . Piercing Weapon . | . . . . . . Special Melee Weapon . | . . . . . . Unidentified Prototypes . | . . . . . . Parts Lost 9 | . 3 1 . 1 4 Power 1 | . 1 . . . . Propulsion 3 | . . . . 1 2 Utility 2 | . 1 . . . 1 Weapon 3 | . 1 1 . . 1 Highest Loss Streak 2 | . 1 1 . 1 2 To Critical Strikes . | . . . . . . Average Slot Usage (%) 87 | . 91 95 75 84 81 Engine 12 | . 14 14 14 14 9 Treads 21 | . 28 28 28 21 1 Wheel 3 | . . . . 6 11 Device 1 | . . . . . 8 Storage 20 | . 14 23 28 28 13 Processor 1 | . . . . . 8 Protection 3 | . 6 . . . 12 Energy Gun 17 | . 24 23 4 14 12 Launcher 2 | . 2 4 . . 3 Naked Turns . | . . . . . . Heaviest Build 73 | 12 49 51 56 56 73 Greatest Support 40 | 40 40 40 40 40 20 Greatest Overweight (x) 7 | . 1 1 1 5 7 Average Overweight (x) 2 | . . 1 1 3 4 Largest Inventory Capacity 20 | 8 20 20 20 20 20 Average Capacity 18 | 7 14 20 20 20 20 Most Carried 20 | 2 9 10 19 20 20 Average Carried 12 | . 6 8 14 17 18 Final Capacity 20 | 8 20 20 20 20 20 Final Carried 19 | 2 6 8 15 19 18 Class Distribution -------------------- 86% | Mutant 5% | Scavenger-Tank 4% | Scavenger-Mutant Dominant Class ---------------- Mutant | -10/Materials Mutant | -10/Mines Mutant | -10/Exiles Mutant | -9/Mines Mutant | -8/Materials Resources | -11 -10 -10 -10 -9 -8 ----------- Run | Jun Mat Min Exi Min Mat Matter Collected 922 | 211 306 125 . 130 150 Remotely . | . . . . . . Salvage Created 2227 | . 418 79 . 241 1489 Parts 118 | . 33 10 . 7 68 Haulers Intercepted . | . . . . . . Recyclers Shooed . | . . . . . . Parts Field Recycled . | . . . . . . Retrieved Matter . | . . . . . . Parts Self-Destructed . | . . . . . . Prevented . | . . . . . . Kills | -11 -10 -10 -10 -9 -8 ------- Run | Jun Mat Min Exi Min Mat Combat Hostiles Destroyed 54 | . 14 7 . 7 26 Guns 42 | . 7 2 . 7 26 AOE 12 | . 7 5 . . . Classes Destroyed 10 | . 5 1 . 1 3 Builder 1 | . 1 . . . . Mechanic 1 | . 1 . . . . Watcher 8 | . 3 . . . 5 Swarmer 12 | . 9 3 . . . Grunt 25 | . 5 2 . 5 13 Sentry 8 | . . . . . 8 Demolisher 2 | . . 2 . . . Specialist 2 | . . . . . 2 Hunter 3 | . . . . . 3 Assembled 2 | . . . . 2 . Best Kill Streak 6 | . 6 3 . 3 6 Combat Bots Only 6 | . 6 3 . 3 5 Max Kills in Single Turn 6 | . 6 2 . 1 1 Gunslinging 1 | . 1 . . . . Exploded 6 | . 6 2 . . . Melee . | . . . . . . Uniques/NPCs Destroyed . | . . . . . . Combat | -11 -10 -10 -10 -9 -8 -------- Run | Jun Mat Min Exi Min Mat Damage Taken 1823 | . 426 270 . 85 1042 Core 376 | . 58 52 . 28 238 Absorbed by Shields . | . . . . . . Core Remaining (%) 72 | 100 . . . 44 . Volleys Fired 76 | . 39 9 . . 28 Largest 2 | . 2 2 . . 2 Hottest 132 | . 90 90 . . 132 Shots Fired 257 | . 76 13 . 23 145 Gun 248 | . 74 6 . 23 145 Cannon . | . . . . . . Launcher 9 | . 2 7 . . . Special . | . . . . . . Kinetic . | . . . . . . Thermal 218 | . 44 6 . 23 145 Explosive 9 | . 2 7 . . . Electromagnetic 30 | . 30 . . . . Robot Hit Streak 61 | . 10 2 . 21 61 Robot Miss Streak 5 | . 5 2 . 1 2 Penetration Max . | . . . . . . Secondary Targets 3 | . 3 . . . . Max Gunslinging Chain 1 | . 1 . . . . Autonomous 119 | . . . . 23 96 Shots Hit Robots 203 | . 46 4 . 21 132 Core Hits 88 | . 27 8 . 8 45 Critical Kills . | . . . . . . Critical Parts Destroyed . | . . . . . . Critical Strikes 2 | . 2 . . . . Burn 1 | . 1 . . . . Corrupt 1 | . 1 . . . . Melee Attacks 2 | . . . . . 2 Impact 2 | . . . . . 2 Slashing . | . . . . . . Piercing . | . . . . . . Sneak Attacks . | . . . . . . Combat Hostiles . | . . . . . . Follow-up Attacks . | . . . . . . Damage Inflicted 5185 | . 951 359 . 621 3254 Guns 4582 | . 671 36 . 621 3254 Cannons . | . . . . . . Explosions 587 | . 280 307 . . . Melee . | . . . . . . Ramming 16 | . . 16 . . . Kinetic . | . . . . . . Thermal 4310 | . 399 36 . 621 3254 Explosive 493 | . 186 307 . . . Electromagnetic 366 | . 366 . . . . Impact . | . . . . . . Slashing . | . . . . . . Piercing . | . . . . . . Highest Corruption 2 | . 2 2 2 2 . Average Corruption 2 | . 2 2 2 2 . Corruption Purged . | . . . . . . Corruption Blocked . | . . . . . . Effects 62 | . 13 23 10 16 . Message Errors 14 | . 3 4 5 2 . Matter Fused 19 | . 2 7 2 8 . Heat Flow Errors 3 | . . 2 1 . . Energy Discharges 8 | . 2 4 1 1 . Parts Rejected 1 | . 1 . . . . Data Loss (minor) 10 | . 1 5 1 3 . Data Loss (major) 3 | . 1 . . 2 . Misfires 3 | . 2 1 . . . Alerts 1 | . 1 . . . . Overload Shots . | . . . . . . Overflow Damage . | . . . . . . Projectiles . | . . . . . . Explosions . | . . . . . . Melee . | . . . . . . Knockbacks . | . . . . . . Impact . | . . . . . . Kinetic . | . . . . . . Secondary . | . . . . . . Self-Inflicted Damage 101 | . 30 71 . . . Shots 4 | . 1 3 . . . Rammed 2 | . . 2 . . . Targets Rammed 2 | . . 2 . . . Kicked . | . . . . . . Crushed . | . . . . . . Highest Temperature 390 | . 264 131 107 . 390 Average Temperature 112 | . 77 47 60 . 161 Received Heat Transfer 402 | . 120 . . 39 243 Effects 5 | . . . . . 5 Shutdowns 2 | . . . . . 2 Energy Bleed 1 | . . . . . 1 Interference 2 | . . . . . 2 Siege Activations . | . . . . . . Robots Corrupted . | . . . . . . Combat Hostiles . | . . . . . . Parts Fried 4 | . 4 . . . . Impact Corruptions . | . . . . . . Robots Melted . | . . . . . . Combat Hostiles . | . . . . . . Parts Melted 16 | . 4 . . . 12 Heat Transferred 6566 | . 1003 87 . 777 4699 Parts Sabotaged . | . . . . . . Parts Stolen . | . . . . . . Parts Stripped . | . . . . . . Power Chain Reactions 2 | . 2 . . . . Missiles Intercepted . | . . . . . . Alert | -11 -10 -10 -10 -9 -8 ------- Run | Jun Mat Min Exi Min Mat Peak Influence 569 | . 184 230 . 70 569 Initial 28 | . . 28 . . . Average 103 | . 94 64 . 13 259 Maximum Alert Level 2 | . . 1 . . 2 Low Security (%) 79 | 100 100 81 . 100 35 Level 1 16 | . . 18 . . 46 Level 2 4 | . . . . . 17 Level 3 . | . . . . . . Level 4 . | . . . . . . Level 5 . | . . . . . . High Security . | . . . . . . Max Security . | . . . . . . Squads Dispatched 6 | . 2 . . . 4 Investigation 2 | . 1 . . . 1 Extermination . | . . . . . . Reinforcement 2 | . 1 . . . 1 Assault 1 | . . . . . 1 Garrison 1 | . . . . . 1 Intercept . | . . . . . . Searches Triggered . | . . . . . . Construction Impeded . | . . . . . . Haulers Reinforced . | . . . . . . Active Scanning Responses . | . . . . . . Cargo Convoy Interrupts . | . . . . . . Stealth | -11 -10 -10 -10 -9 -8 --------- Run | Jun Mat Min Exi Min Mat Distress Signals 3 | . . 2 . . 1 Communications Jammed . | . . . . . . Distress Signals . | . . . . . . Times Spotted 81 | . 23 17 . 5 36 Peak Tracking Total 10 | . 6 10 . 3 5 Tactical Retreats 4 | . 1 2 . . 1 Traps | -11 -10 -10 -10 -9 -8 ------- Run | Jun Mat Min Exi Min Mat Traps Triggered 4 | . 2 . . . 2 Indirectly . | . . . . . . Trap Hack Attempts . | . . . . . . Triggered . | . . . . . . Disarmed . | . . . . . . Reprogrammed . | . . . . . . Reused . | . . . . . . Traps Extracted . | . . . . . . Installed . | . . . . . . Triggered . | . . . . . . Exploded 1 | . . . . . 1 Machines | -11 -10 -10 -10 -9 -8 ---------- Run | Jun Mat Min Exi Min Mat Machines Disabled 4 | . . 2 . . 2 Max in Single Turn 1 | . . 1 . . 1 Garrison Access 1 | . . . . . 1 Machines Repaired . | . . . . . . Machines Sabotaged . | . . . . . . Overloaded Fab Kills . | . . . . . . Hacking | -11 -10 -10 -10 -9 -8 --------- Run | Jun Mat Min Exi Min Mat Machines Accessed 14 | . 7 . 1 . 6 Terminals 11 | . 6 . . . 5 Fabricators . | . . . . . . Repair Stations . | . . . . . . Recycling Units 1 | . 1 . . . . Scanalyzers 1 | . . . . . 1 Garrison Access . | . . . . . . Total Hacks 38 | . 17 . 1 . 20 Successful 18 | . 4 . 1 . 13 Failed 20 | . 13 . . . 7 Catastrophic 4 | . 2 . . . 2 Database Lockouts . | . . . . . . Manual 28 | . 16 . 1 . 11 Terminals 27 | . 16 . . . 11 Fabricators . | . . . . . . Repair Stations . | . . . . . . Recycling Units 1 | . 1 . . . . Scanalyzers 9 | . . . . . 9 Garrison Access . | . . . . . . Terminal Hacks 4 | . 2 . 1 . 1 Robot Analysis 2 | . 2 . . . . Terminal Index 1 | . . . . . 1 EX-Prototype ID Bank 1 | . . . 1 . . Fabricator Hacks . | . . . . . . Repair Station Hacks . | . . . . . . Recycling Unit Hacks . | . . . . . . Scanalyzer 8 | . . . . . 8 Insert Component 3 | . . . . . 3 Analyze 5 | . . . . . 5 Garrison Access Hacks . | . . . . . . Unauthorized Hacks 6 | . 2 . . . 4 Terminals 6 | . 2 . . . 4 Assimilate 1 | . . . . . 1 Botnet 3 | . 1 . . . 2 Operators 2 | . 1 . . . 1 Fabricators . | . . . . . . Repair Stations . | . . . . . . Recycling Units . | . . . . . . Scanalyzers . | . . . . . . Garrison Access . | . . . . . . Data Cores Recovered . | . . . . . . Used . | . . . . . . Hacking Detections 12 | . 7 . . . 5 Full Trace Events . | . . . . . . Feedback Events . | . . . . . . Feedback Blocked . | . . . . . . Robot Schematics Acquired . | . . . . . . Robots Built . | . . . . . . Authchips . | . . . . . . Time . | . . . . . . Total Robot Build Rating . | . . . . . . Part Schematics Acquired 3 | . . . . . 3 Parts Built . | . . . . . . Authchips . | . . . . . . Time . | . . . . . . Total Part Build Rating . | . . . . . . Parts Repaired . | . . . . . . Time . | . . . . . . Parts Recycled . | . . . . . . Recycled Matter . | . . . . . . Retrieved Matter . | . . . . . . Retrieved Components . | . . . . . . Parts Scanalyzed 3 | . . . . . 3 Part Schematics Acquired 3 | . . . . . 3 Parts Damaged . | . . . . . . Bothacking | -11 -10 -10 -10 -9 -8 ------------ Run | Jun Mat Min Exi Min Mat Used RIF Installer . | . . . . . . Robots Hacked . | . . . . . . Non-combat . | . . . . . . Combat . | . . . . . . Robot Hacks Applied . | . . . . . . Relay Couplers Released 2 | . . . . . 2 Machine Destruction 2 | . . . . . 2 Fabnet Peak Effective % . | . . . . . . Robots Rewired . | . . . . . . Allies Hacked . | . . . . . . Hacks Repelled . | . . . . . . Allies | -11 -10 -10 -10 -9 -8 -------- Run | Jun Mat Min Exi Min Mat Total Allies 1 | . . . . . 1 Largest Group 1 | . . . . . 1 Highest-Rated Group 10 | . . . . . 10 Highest-Rated Ally 10 | . . . . . 10 Total Orders . | . . . . . . Ally Attacks . | . . . . . . Total Damage . | . . . . . . Kills . | . . . . . . Allies Corrupted . | . . . . . . Allies Melted . | . . . . . . Intel | -11 -10 -10 -10 -9 -8 ------- Run | Jun Mat Min Exi Min Mat Robot Analysis Total 2 | . 2 . . . . Derelict Logs Recovered 4 | . . 2 . 2 . Drone Launches . | . . . . . . Drone Recoveries . | . . . . . . Exploration | -11 -10 -10 -10 -9 -8 ------------- Run | Jun Mat Min Exi Min Mat Turns Passed 6655 | 113 1354 1723 815 1314 1336 Spaces Moved 2932 | 65 654 628 336 524 725 Core 1 | 1 . . . . . Treads 1887 | 64 654 628 336 205 . Legs . | . . . . . . Wheels 1044 | . . . . 319 725 Hover . | . . . . . . Flight . | . . . . . . Fastest Speed 50 | 50 160 240 240 155 125 Average Speed 194 | 158 182 240 240 189 154 Slowest Speed 320 | 160 240 240 240 320 185 Overloaded Moves . | . . . . . . Propulsion Burnouts . | . . . . . . Robots Hopped . | . . . . . . Cave-ins Triggered . | . . . . . . Exploration Rate (%) 71 | 5 95 97 69 90 70 Regions Visited 5 Branch Regions 3 Pre-discovered Areas 3 | . . 2 . 1 . Known Exits Taken . | . . . . . . Unknown Exits Taken 5 | 1 1 1 1 1 . Scrap Searched 2 | . . 1 . 1 . Spaces Dug 2 | . . . . . 2 Terrain Destroyed 57 | . 19 30 . 2 6 Melee 2 | . . . . . 2 Projectile 6 | . . . . 2 4 AOE 49 | . 19 30 . . . Terrain Rammed . | . . . . . . Walls Destroyed . | . . . . . . Machines Disabled . | . . . . . . Actions | -11 -10 -10 -10 -9 -8 --------- Run | Jun Mat Min Exi Min Mat Total 3730 | 72 742 829 348 847 892 Wait 624 | . 31 184 . 315 94 Move 2927 | 64 653 627 335 523 725 Hop . | . . . . . . Pick Up 37 | 2 7 4 6 6 12 Fast Attach 14 | 6 2 . . 1 5 Attach 16 | . 3 2 3 . 8 Detach 4 | . . . 2 . 2 Swap 9 | . 4 1 . . 4 Drop 19 | . 3 . 2 2 12 Fire 76 | . 39 9 . . 28 Melee 2 | . . . . . 2 Ram . | . . . . . . Kick . | . . . . . . Crush 2 | . . 2 . . . Escape Stasis . | . . . . . . Rewire . | . . . . . . Trap . | . . . . . . Miscellaneous . | . . . . . . Route ------- -11/Junkyard -10/Materials (discovered 4 exits: [*Mat x3] / [*Min]) -10/Mines (discovered 3 exits: [*Mat x2] / *Exi) -10/Exiles (discovered 2 exits: [*Min x2]) -9/Mines (discovered 2 exits: *Mat x2) -8/Materials (discovered 2 exits: [*Fac x2]) History --------- Turn | Location | Event 8 | -11/Junkyard | Discovered new exit (range 16) 114 | -11/Junkyard | Entered Materials 305 | -10/Materials | Build established: Mutant 398 | -10/Materials | Discovered new exit (range 10) 576 | -10/Materials | Discovered new exit (range 7) 777 | -10/Materials | Discovered new exit (range 15) 827 | -10/Materials | Discovered new exit (range 12) 1468 | -10/Materials | Entered Mines 1962 | -10/Mines | Assembled infested the area 2409 | -10/Mines | Discovered new exit (range 8) 2534 | -10/Mines | Learned location of Zion (-6) 2673 | -10/Mines | Deemed a non-threat by the Exiles lab entrance 2757 | -10/Mines | Discovered new exit (range 13) 3181 | -10/Mines | Discovered new exit (range 5) 3191 | -10/Mines | Entered Exiles 3230 | -10/Exiles | Discovered new exit (range 15) 3300 | -10/Exiles | Met 8R-AWN 3335 | -10/Exiles | Met EX-HEX 3433 | -10/Exiles | Met EX-DEC 3666 | -10/Exiles | Met EX-BIN 3695 | -10/Exiles | Aligned with FarCom system 3697 | -10/Exiles | Given EX-Vault access code 3752 | -10/Exiles | Opened EX-Vault 3764 | -10/Exiles | Found AWS/Thermal 3768 | -10/Exiles | Found Modified TNC 3776 | -10/Exiles | Found AWS/Autocannon 3827 | -10/Exiles | Warned to stay clear of 0b10 Research branches 3976 | -10/Exiles | Discovered new exit (range 14) 4006 | -10/Exiles | Stole three prototypes: AWS/Thermal, Modified TNC, AWS/Autocannon 4006 | -10/Exiles | Entered Mines 4173 | -9/Mines | A weapon hastily lodged in a ceiling crevice suddenly fell to the ground 4186 | -9/Mines | Discovered new exit (range 11) 4327 | -9/Mines | Received a Rocket Launcher from a helpful Derelict 4390 | -9/Mines | Learned Materials security intel 4513 | -9/Mines | Excavation squad dispatched 4513 | -9/Mines | A large section of the Mines collapsed 4887 | -9/Mines | Core integrity fell below 50% 5099 | -9/Mines | Discovered new exit (range 14) 5320 | -9/Mines | Entered Materials 5320 | -8/Materials | Evolved 4 slots: Utility x3, Weapon x1 5950 | -8/Materials | Discovered new exit (range 3) 6218 | -8/Materials | Discovered new exit (range 7) 6222 | -8/Materials | Build established: Scavenger-Tank 6605 | -8/Materials | Build established: Scavenger-Mutant 6640 | -8/Materials | Garrison activated, responded to threat 6656 | -8/Materials | Self-destructed Last Messages --------------- 06634_ X-57 Shotgunner destroyed. 06635_ Technician 3a reports 0b10 security level has risen to 2. 06636_ Wheel destroyed. 06637_ Technician 3a reports 0b10 security level has lowered to 1. 06640_ X-57 Shotgunner calls for garrison reinforcements. 06640_ ALERT: Activating Garrison Access M001. 06641_ S-10 Pest emerges from the garrison. 06642_ Power failure, Lgt. Angular Momentum Engine shutdown. 06642_ S-10 Pest destroyed. 06644_ Overheating: Energy bleed (-15). 06645_ Hpw. Shotgun melted. 06645_ X-57 Shotgunner destroyed. 06646_ Technician 3a reports 0b10 security level has risen to 2. 06654_ Overheating: System interference. 06654_ Field Laser temporarily disabled. 06654_ Adv. Targeting Computer temporarily disabled. 06654_ ALERT: Garrison Access compromised, dispatching assault squad. 06654_ Garrison Access disabled. 06654_ Relay Coupler [Heavy] tumbles out of Garrison Access. 06654_ Relay Coupler [Duelist] tumbles out of Garrison Access. Map ----- +----------------------------------------------------+ | ##########????????????## ####+########?????????? | | #########????????????## ## ?????????? | | ##???????????????????## ##????????????????????? | | ##???????????????????## ##????????????????????? | | ##???????????????????## ##????????????????????? | | ###??????????????????## # ???????????????????? | | ## ?????????????????### ## ???????????????????? | | %# ?????????????????### ## ????????????? | | !## ?????????????????## * ###+#####????????### ? | | *## ?????????????????## ###### ??? ## | | ###??????????????????## T ###### | | ###??????????????????## [%!= | | ?????????????????????## #####+####### | | ?????????????????## ######### ### ??? #### | | ?????????????????## # " ##### ##?????##### | | ????????????????? # #"G"##### ##?????????? | | ????????????????? # # s"##### ##?????????? | | ????????????????? +^!!% ### ##?????????? | | ????????????????? # ^ [ ### ##?????????? | | ????????????????? # ^^ =="## ##?????????? | | ??????????????? # ^^ = T## ##?????????? | | #######????????#### !% "#######/#####?????????? | | #######????????##""[[[ ######## #####?????????? | | ##????????##"T[[[ [% ##????## ##????????????? | | T / ##????????##""[[[ ######## ##????????????? | | ############## @######## ##????????????? | | [ ############## o ##????????????? | | # ################### ##????????????? | | = # "T" ##### ###### ##????????????? | | #+#### """ ##??????????????? # ##????????????? | | # """ ##??????????????? # ##????????????? | | " """ / ##??????????????? # ##????????????? | | # ##??????????????? # ????????????? | | ###### ##??????????????? + ?????????????? | | ###### !##??????????????? # ?????????????? | | ##??#############????????????????? ?????????????? | | ##??#############????????????????? ?????????????? | | ##################???????????????? ?????????????? | | ##################???????????????? ?????????????? | | # ?????????????? ?????????????? | | + ????H????????? ?????????????? | | # ?????????????????????????????? | | ##################???????????????????????????????? | | ##################???????????????????????????????? | | ##???????????????????????????????????????????????? | | ##???????????????????????????????????????????????? | | ##???????????????????????????????????????????????? | | ?????????????????????????????????????????????????? | | ?????????????????????????????????????????????????? | | ?????????????????????????????????????????????????? | +----------------------------------------------------+ Best States ------------- Heat Dissipation 50 Energy Generation 18 Energy Capacity 250 Matter Stores 450 Matter Capacity 450 Sight Range 16 Terrain Scan Density 10 Armor Coverage 375 Resistance: TH 10 Evasion (%) 40 Targeting Accuracy 8 Recoil Reduction 2 Item Schematics ----------------- Huge Storage Unit | -8/Materials | Scanalyzed Great Maul | -8/Materials | Scanalyzed Machine Analyzer | -8/Materials | Scanalyzed Robot Schematics ------------------ None Fabricated ------------ Nothing Alien Tech Used ----------------- None Achievements -------------- None Challenges ------------ None Game ------ Seed DamperMakeshiftMachine Manual? 0 Play Time 00:26:38 Cumulative 281.9 hours Start 2023.03.04 @ 23:27:26 End 2023.03.04 @ 23:46:44 Sessions 1 Manual Loads 0 Difficulty Rogue Special Mode None Game No. 417 Rogue 395 Adventurer 4 Explorer 18 Win Type - Total 11 Types 9/0/0/2/0/0/0/0/0 Lore% 70 Gallery% 89 Achievement% 73 Wizard Run 0 Options --------- ASCII 0 Keyboard 1 Movement Numpad Keybinds 0 Fullscreen 2 Font 18/SmallcapsGlow Map View 76x50 Tactical HUD 1 Map Filters NONE Filters NONE Steam 1 RUN: 686ce97c-f04f-4260-88a5-686da53ee1d9